Cogmind - Beta 9.6 @@@ ROGUE MODE // 2020.09.07 @ 17:07:30 Player: Finestep Result: Destroyed by H-66 Slayer with Gauss Rifle Performance ------------- Evolutions (3) 1500 Regions Visited (16) 3200 Robots Destroyed (307) 1535 Value Destroyed (9308) 9308 Prototype IDs (237) 4740 Alien Tech Used (1) 200 Bonus (5405) 5405 TOTAL SCORE: 25888 Bonus ------- High Alert Combat Kills 1588 Follower Combat Kills 653 Entered Garrisons 200 Used RIF Installer 500 Aligned with FarCom 300 Met Data Miner 300 Used Data Conduit 3000 Friendly Fire -1136 Cogmind --------- Core Integrity 0/700 Matter 289/300 Energy 315/325 System Corruption 0% Temperature Cool (4) Movement Walking (144) Ox1 Location -6/Proximity Caves Parts ------- > --- POWER (1) -------- Antimatter Reactor > --- PROPULSION (4) --- Enhanced Flexi-carbon Leg Enhanced Flexi-carbon Leg Enhanced Flexi-carbon Leg Potential Leg > --- UTILITY (7) ------ Large Storage Unit Large Storage Unit High-capacity Storage Unit High-capacity Storage Unit Advanced Sensor Array Improved Signal Interpreter Advanced Core Analyzer > --- WEAPON (2) ------- AWS/Gauss > --- INVENTORY (32) --- Cold Fusion Reactor Antimatter Reactor Enhanced Flexi-carbon Leg Combat Antigrav System Combat Antigrav System Combat Antigrav System Advanced Heat Sink Improved Cooling System Improved Energy Well (600) Gravity Neutralizing Apparatus Advanced Sensor Array Advanced Targeting Computer Advanced Particle Charger Advanced Weapon Cycler Advanced Transmission Jammer Improved Utility Shielding Hardened Medium Armor Plating Layered Medium Armor Plating Damper Plating Relay Coupler [NC] (32) Relay Coupler [Grunt] (24) Relay Coupler [Sentry] (24) System Purifier Neutron Cannon Gauss Rifle Gauss Cannon Remote Datajack Remote Datajack Katana Makeshift Sword Peak State ------------ > --- POWER ------------ Antimatter Reactor > --- PROPULSION ------- Enhanced Flexi-carbon Leg Enhanced Flexi-carbon Leg Enhanced Flexi-carbon Leg Potential Leg > --- UTILITY ---------- Large Storage Unit Large Storage Unit High-capacity Storage Unit High-capacity Storage Unit Advanced Sensor Array Improved Signal Interpreter Advanced Core Analyzer > --- WEAPON ----------- AWS/Gauss > --- INVENTORY -------- Cold Fusion Reactor Antimatter Reactor Antimatter Reactor Enhanced Flexi-carbon Leg Combat Antigrav System Combat Antigrav System Combat Antigrav System Advanced Heat Sink Improved Cooling System Improved Energy Well Gravity Neutralizing Apparatus Advanced Sensor Array Advanced Targeting Computer Advanced Particle Charger Advanced Weapon Cycler Advanced Transmission Jammer Improved Utility Shielding Hardened Medium Armor Plating Layered Medium Armor Plating Damper Plating Relay Coupler [NC] Relay Coupler [Grunt] Relay Coupler [Sentry] System Purifier Neutron Cannon Gauss Rifle Gauss Cannon Remote Datajack Remote Datajack Katana [Rating: 88] Favorites ----------- Power Reinforced Fission Core Engine Light Ion Engine Power Core Reinforced Fission Core Reactor Antimatter Reactor Propulsion Light Treads Treads Light Treads Leg Potential Leg Wheel Armored Wheel Hover Unit Gravmag System Utility Large Storage Unit Device Advanced Sensor Array Storage Large Storage Unit Processor Improved Signal Interpreter Hackware Relay Coupler [Hunter] Protection Improved Light Armor Plating Weapon Improved Assault Rifle Energy Gun Beamcaster Energy Cannon Plasma Cannon Ballistic Gun Improved Assault Rifle Ballistic Cannon Gauss Cannon Launcher Proton Missile Launcher Special Weapon Remote Datajack Slashing Weapon Katana Build | -11 -10 -10 -9 -9 -9 -8 -8 -8 -8 -7 -7 -7 -7 -7 -7 -6 ------- Run | Scr Mat Min Mat Min Exi Min Mat Gar Mat Fac Was Fac Low Low Dat Pro Slots Evolved 6 | . . . 2 . . . 2 . . 2 . . . . . . Power . | . . . . . . . . . . . . . . . . . Propulsion 1 | . . . 1 . . . . . . . . . . . . . Utility 5 | . . . 1 . . . 2 . . 2 . . . . . . Weapon . | . . . . . . . . . . . . . . . . . Parts Attached 322 | 6 9 7 25 2 40 . 56 30 24 49 12 20 6 13 15 8 Power 15 | 1 1 1 2 . 3 . . 2 1 1 . . . . 2 1 Engine 6 | 1 1 1 2 . 1 . . . . . . . . . . . Core 5 | . . . . . 1 . . 2 1 1 . . . . . . Reactor 4 | . . . . . 1 . . . . . . . . . 2 1 Propulsion 82 | 2 1 2 13 . 10 . 15 11 5 10 . 3 . 2 6 2 Treads 50 | 2 1 2 12 . 8 . 14 3 5 1 . 2 . . . . Leg 22 | . . . . . 2 . . 3 . 7 . . . 2 6 2 Wheel 9 | . . . 1 . . . 1 5 . 2 . . . . . . Hover 1 | . . . . . . . . . . . . 1 . . . . Flight . | . . . . . . . . . . . . . . . . . Utility 83 | 1 2 . 1 . 15 . 14 6 4 17 5 4 2 5 3 4 Device 25 | . . . . . 4 . 3 2 1 4 1 2 1 4 1 2 Storage 16 | 1 2 . 1 . 6 . 2 2 2 . . . . . . . Processor 8 | . . . . . . . 1 . . 4 1 . . . 2 . Hackware 8 | . . . . . . . . . . 5 . 2 1 . . . Protection 26 | . . . . . 5 . 8 2 1 4 3 . . 1 . 2 Artifact . | . . . . . . . . . . . . . . . . . Weapon 142 | 2 5 4 9 2 12 . 27 11 14 21 7 13 4 6 4 1 Energy Gun 9 | . . . . . 2 . 2 . 1 1 2 1 . . . . Energy Cannon 4 | . . . . . . . . . 1 1 . 1 . 1 . . Ballistic Gun 64 | 2 4 4 9 1 9 . 16 4 5 6 2 . . . 1 1 Ballistic Cannon 21 | . . . . . . . 5 4 3 1 . 5 1 2 . . Launcher 16 | . . . . . 1 . 2 2 2 3 . 1 1 2 2 . Special Weapon 14 | . 1 . . 1 . . . . . 7 1 2 2 . . . Impact Weapon . | . . . . . . . . . . . . . . . . . Slashing Weapon 14 | . . . . . . . 2 1 2 2 2 3 . 1 1 . Piercing Weapon . | . . . . . . . . . . . . . . . . . Special Melee Weapon . | . . . . . . . . . . . . . . . . . Unidentified Prototypes 10 | . . . 1 . 5 . 1 . . 1 1 . . 1 . . Parts Lost 52 | . 3 1 6 . 9 . 4 5 5 12 . . . . 6 1 Power 5 | . 1 . 1 . 1 . . . . . . . . . 1 1 Propulsion 13 | . . . 2 . 3 . 2 1 . 3 . . . . 2 . Utility 13 | . . . . . 4 . 2 2 1 4 . . . . . . Weapon 21 | . 2 1 3 . 1 . . 2 4 5 . . . . 3 . Highest Loss Streak 6 | . 3 1 3 . 5 . 1 5 2 4 . . . . 6 1 Average Slot Usage (%) 97 | . 97 99 99 100 98 100 98 98 98 95 99 99 92 92 92 92 Engine 3 | . 13 14 10 11 7 . . . . . . . . . . . Core 5 | . . . . . 3 11 9 9 8 6 7 7 7 7 2 . Treads 17 | . 27 27 33 33 32 33 25 11 13 2 . 5 . . . . Leg 7 | . . . . . . . . 3 . 13 23 16 15 18 26 28 Wheel 2 | . . . . . . . . 11 13 3 . . . . . . Device 3 | . . . . . . . 3 7 3 3 12 7 7 6 4 6 Storage 28 | . 25 28 33 33 24 33 27 28 36 30 30 30 30 29 28 28 Processor 3 | . . . . . . . . . . 9 7 7 7 7 15 14 Hackware 1 | . . . . . . . . . . 5 . 3 6 7 1 . Protection 4 | . . . . . 7 . 13 7 5 2 2 3 . . . . Ballistic Gun 11 | . 27 28 21 20 20 22 11 3 8 3 3 . . . 4 7 Ballistic Cannon 3 | . . . . . . . 5 14 5 2 . 2 3 5 1 . Naked Turns . | . . . . . . . . . . . . . . . . . Heaviest Build 139 | 11 39 38 53 53 91 91 125 130 130 134 133 138 132 139 132 130 Greatest Support 114 | 40 40 40 60 60 78 63 63 60 24 75 75 75 60 90 114 114 Greatest Overweight (x) 10 | 1 . . . . 1 1 6 9 10 10 1 2 2 2 2 1 Average Overweight (x) 1 | . . . . . . 1 1 3 7 2 1 1 2 1 1 1 Largest Inventory Capacity 32 | 6 16 16 20 20 24 24 26 32 32 32 32 32 32 32 32 32 Average Capacity 25 | 5 14 16 19 20 16 24 25 27 32 32 32 32 32 32 32 32 Most Carried 32 | 3 16 16 20 20 24 24 26 32 32 32 32 32 32 32 32 32 Average Carried 24 | 1 11 15 18 20 15 23 24 26 31 31 31 31 31 32 29 31 Final Capacity 32 | 6 16 16 20 20 24 24 26 32 32 32 32 32 32 32 32 32 Final Carried 32 | 3 16 16 20 20 24 24 26 32 32 32 32 32 32 32 32 32 Class Distribution -------------------- 40% | Hauler-Mutant 22% | Bothacker-Mutant 20% | Scavenger-Mutant 15% | Mutant Dominant Class ---------------- Mutant | -10/Materials Scavenger-Mutant | -10/Mines Scavenger-Mutant | -9/Materials Hauler-Mutant | -9/Mines Mutant | -9/Exiles Hauler-Mutant | -8/Mines Scavenger-Mutant | -8/Materials Scavenger-Mutant | -8/Garrison Hauler-Mutant | -8/Materials Bothacker-Mutant | -7/Factory Bothacker-Mutant | -7/Waste Bothacker-Mutant | -7/Factory Hauler-Mutant | -7/Lower Caves Hauler-Mutant | -7/Lower Caves Hauler-Mutant | -7/Data Miner Hauler-Mutant | -6/Proximity Caves Resources | -11 -10 -10 -9 -9 -9 -8 -8 -8 -8 -7 -7 -7 -7 -7 -7 -6 ----------- Run | Scr Mat Min Mat Min Exi Min Mat Gar Mat Fac Was Fac Low Low Dat Pro Matter Collected 8939 | 320 963 171 560 74 970 . 1864 864 931 1034 231 143 211 384 155 64 Remotely . | . . . . . . . . . . . . . . . . . Salvage Created 12380 | 138 983 319 1507 202 581 . 2597 1023 1614 1667 126 172 131 376 406 538 Parts 728 | 5 63 23 99 10 60 . 152 53 92 85 6 9 4 12 18 37 Haulers Intercepted 16 | . 2 . 5 . . . 6 . 3 . . . . . . . Recyclers Shooed 15 | . 3 . 4 . . . 5 . 1 2 . . . . . . Parts Field Recycled . | . . . . . . . . . . . . . . . . . Retrieved Matter . | . . . . . . . . . . . . . . . . . Parts Self-Destructed 48 | . . . . . . . . . . . . . 1 10 . 37 Prevented 6 | . . . . . . . . . . . . . 1 5 . . Kills | -11 -10 -10 -9 -9 -9 -8 -8 -8 -8 -7 -7 -7 -7 -7 -7 -6 ------- Run | Scr Mat Min Mat Min Exi Min Mat Gar Mat Fac Was Fac Low Low Dat Pro Combat Hostiles Destroyed 214 | . 16 13 24 4 6 . 40 24 34 25 . 5 4 6 4 9 Melee 10 | . . . . . . . . . 2 7 . . 1 . . . Guns 120 | . 16 13 24 4 2 . 27 3 15 5 . 1 . . 1 9 Cannons 52 | . . . . . . . 12 15 12 7 . 4 . 2 . . AOE 25 | . . . . . 4 . 1 6 4 4 . . 3 3 . . Classes Destroyed 20 | 2 5 1 3 . 3 . 3 . 2 . 1 . . . . . Worker 17 | . . 1 4 . . . 6 . 3 3 . . . . . . Builder 5 | . . . . . . . 4 . . 1 . . . . . . Tunneler 5 | 3 . . . 1 . . . . 1 . . . . . . . Hauler 16 | . 2 . 5 . . . 6 . 3 . . . . . . . Recycler 16 | 1 3 . 5 . . . 6 . . 1 . . . . . . Mechanic 2 | . . . . . . . . . 1 1 . . . . . . Operator 3 | . 2 . 1 . . . . . . . . . . . . . Turret 1 | . . . . . 1 . . . . . . . . . . . Watcher 10 | . 2 . 1 . . . 5 . . 1 . 1 . . . . Swarmer 52 | . 3 9 11 . . . 7 10 6 2 . . 3 1 . . Grunt 95 | . 13 4 6 4 . . 19 9 17 12 . 2 1 5 . 3 Brawler 11 | . . . 1 . . . 1 2 2 5 . . . . . . Duelist 5 | . . . 1 . . . 1 . . 3 . . . . . . Protector 1 | . . . . . . . . . 1 . . . . . . . Sentry 23 | . . . 5 . . . 10 2 3 2 . 1 . . . . Hunter 13 | . . . . . . . 1 1 4 . . . . 1 . 6 Programmer 6 | . . . . . . . 1 . 1 2 . 2 . . . . Enhanced Grunt 4 | . . . . . . . . . . . . . . . 4 . Zionite 8 | . . . . . 8 . . . . . . . . . . . Decomposer 1 | . . . . . . . . . . . . . 1 . . . Assembled 7 | . . . . . 7 . . . . . . . . . . . Thug 1 | . . . . . . . . . . . 1 . . . . . Martyr 1 | . . . . . . . . . . . 1 . . . . . Best Kill Streak 9 | 4 6 3 9 3 5 . 8 4 6 5 . 3 3 3 4 3 Combat Bots Only 6 | . 3 3 6 3 5 . 4 4 5 5 . 3 3 3 4 3 Max Kills in Single Turn 4 | 1 2 1 2 1 4 . 3 3 3 3 1 1 2 1 1 1 Gunslinging . | . . . . . . . . . . . . . . . . . Exploded 4 | . . . . . 4 . 1 3 2 2 . . 2 1 . . Melee 1 | . . . . . . . . . 1 1 . . 1 . . . Uniques/NPCs Destroyed 2 | . . . . . 2 . . . . . . . . . . . 8R-AWN (-9/Exiles) EX-BIN (-9/Exiles) EX-HEX (-9/Exiles) EX-DEC (-9/Exiles) Combat | -11 -10 -10 -9 -9 -9 -8 -8 -8 -8 -7 -7 -7 -7 -7 -7 -6 -------- Run | Scr Mat Min Mat Min Exi Min Mat Gar Mat Fac Was Fac Low Low Dat Pro Damage Taken 14223 | . 615 614 1182 98 1537 . 2353 1064 1675 2446 20 653 157 186 679 944 Core 1784 | . 132 85 186 21 114 . 294 100 150 342 . 81 . 42 133 104 Absorbed by Shields 230 | . . . . . . . . 71 . 159 . . . . . . Core Remaining (%) 33 | 100 . 13 . . . 19 . . 1 . . . . . . . Volleys Fired 946 | 10 95 43 125 26 111 1 173 64 120 103 6 44 4 12 9 . Largest 2 | 2 2 2 2 2 2 2 2 2 2 2 1 2 1 2 1 . Hottest 150 | 40 100 40 40 100 90 46 96 96 102 98 30 150 36 128 80 . Shots Fired 1772 | 20 189 85 249 35 224 2 337 116 194 147 8 67 4 17 15 63 Gun 1365 | 20 188 85 249 18 222 2 237 38 122 86 7 22 . . 6 63 Cannon 326 | . . . . . . . 97 73 69 34 . 40 . 11 2 . Launcher 42 | . . . . . 2 . 3 5 3 13 . 1 2 6 7 . Special 39 | . 1 . . 17 . . . . . 14 1 4 2 . . . Kinetic 1544 | 20 188 85 249 18 196 2 324 111 156 81 7 33 . 5 6 63 Thermal 78 | . 1 . . 17 . . . . . 23 . 29 . 6 2 . Explosive 2 | . . . . . 2 . . . . . . . . . . . Electromagnetic 127 | . . . . . 26 . 13 5 38 29 . 1 2 6 7 . Robot Hit Streak 42 | 12 13 11 26 12 27 17 32 14 12 12 7 7 6 6 11 42 Robot Miss Streak 5 | 1 4 3 4 1 5 . 4 3 5 5 3 4 . 3 1 3 Penetration Max 2 | . . . . . . . 1 2 2 1 2 . . . . . Secondary Targets 14 | . 2 1 3 . . . 4 1 3 . . . . . . . Max Gunslinging Chain 1 | . 1 1 1 . . . 1 1 1 . . . . . . . Autonomous 74 | . . . . . 5 . . . . . . . . . 6 63 Shots Hit Robots 1232 | 15 122 58 183 13 178 2 219 68 121 134 6 32 5 9 13 54 Core Hits 555 | 5 49 26 75 7 59 . 103 38 63 63 5 10 5 7 12 28 Critical Hits 56 | 1 1 . 1 . 2 . 15 13 10 8 3 1 . . . 1 Critical Kills 23 | . . . . . . . 9 6 6 . 1 1 . . . . Critical Parts Destroyed 28 | 1 1 . 1 . 1 . 5 6 4 8 . . . . . 1 Melee Attacks 62 | . . . . . . . 2 . 3 36 1 10 4 5 1 . Impact . | . . . . . . . . . . . . . . . . . Slashing 62 | . . . . . . . 2 . 3 36 1 10 4 5 1 . Piercing . | . . . . . . . . . . . . . . . . . Sneak Attacks 6 | . . . . . . . . . . 3 1 . 1 . 1 . Combat Hostiles 2 | . . . . . . . . . . 2 . . . . . . Follow-up Attacks . | . . . . . . . . . . . . . . . . . Damage Inflicted 24567 | 201 1494 518 1716 195 2794 31 4678 1720 3309 3945 292 769 325 520 702 1358 Guns 14262 | 201 1494 513 1716 195 2391 31 2727 529 1341 1096 196 307 . . 167 1358 Cannons 5512 | . . . . . . . 1732 985 1368 781 . 462 . 168 16 . Explosions 3247 | . . . . . 403 . 211 206 501 970 . . 180 352 424 . Melee 1533 | . . . . . . . . . 99 1098 96 . 145 . 95 . Ramming 13 | . . 5 . . . . 8 . . . . . . . . . Kinetic 17461 | 201 1494 513 1716 195 2300 31 4325 1514 1914 1076 196 370 . 91 167 1358 Thermal 1617 | . . . . . . . . 33 289 762 . 399 41 77 16 . Explosive 403 | . . . . . 403 . . . . . . . . . . . Electromagnetic 3540 | . . . . . 91 . 345 173 1007 1009 . . 139 352 424 . Impact . | . . . . . . . . . . . . . . . . . Slashing 1533 | . . . . . . . . . 99 1098 96 . 145 . 95 . Piercing . | . . . . . . . . . . . . . . . . . Highest Corruption 19 | . . . . . . . 1 1 4 19 19 3 3 3 . . Average Corruption 4 | . . . . . . . 1 1 2 8 12 1 3 2 . . Corruption Purged 22 | . . . . . . . . . . . 19 . . 3 . . Effects 156 | . . . . . . . 14 4 19 64 41 5 6 3 . . Message Errors 39 | . . . . . . . 6 2 4 11 12 . 2 2 . . Matter Fused 29 | . . . . . . . . . 1 16 7 3 2 . . . Heat Flow Errors 10 | . . . . . . . . . 1 4 2 2 1 . . . Energy Discharges 13 | . . . . . . . 1 1 1 5 4 . . 1 . . Parts Rejected 1 | . . . . . . . . . 1 . . . . . . . Data Loss (minor) 14 | . . . . . . . 2 . 3 4 4 . 1 . . . Data Loss (major) 2 | . . . . . . . . . . . 2 . . . . . Misfires 2 | . . . . . . . . . . . 2 . . . . . Alerts 2 | . . . . . . . . . . . 2 . . . . . Misdirections 17 | . . . . . . . . . . 11 6 . . . . . Targeting Errors 22 | . . . . . . . 4 1 7 10 . . . . . . Weapon Failures 5 | . . . . . . . 1 . 1 3 . . . . . . Overload Shots . | . . . . . . . . . . . . . . . . . Overflow Damage 183 | . . . . . 8 . 32 17 37 70 . . 1 18 . . Projectiles 53 | . . . . . . . 21 17 12 3 . . . . . . Explosions 47 | . . . . . 8 . 11 . 1 8 . . 1 18 . . Melee 83 | . . . . . . . . . 24 59 . . . . . . Knockbacks 31 | . . . . . . . 12 8 3 4 . 3 . 1 . . Impact 1 | . . . . . . . 1 . . . . . . . . . Kinetic 27 | . . . . . . . 9 7 3 4 . 3 . 1 . . Secondary 3 | . . . . . . . 2 1 . . . . . . . . Self-Inflicted Damage 128 | . . . . . . . . 26 . 102 . . . . . . Shots 9 | . . . . . . . . 1 . 8 . . . . . . Rammed 2 | . . 1 . . . . 1 . . . . . . . . . Targets Rammed 3 | . . 1 . . . . 2 . . . . . . . . . Kicked . | . . . . . . . . . . . . . . . . . Crushed 1 | . . . . . . . 1 . . . . . . . . . Highest Temperature 533 | . 20 21 15 60 533 . 434 9 205 251 188 390 260 189 80 . Average Temperature 88 | . 7 9 4 22 156 . 93 9 52 81 85 113 134 77 58 . Received Heat Transfer 3690 | . 255 228 300 54 . . 1035 474 567 450 9 102 27 63 90 36 Effects 13 | . . . . . 6 . 6 . . . . 1 . . . . Shutdowns 2 | . . . . . 1 . 1 . . . . . . . . . Energy Bleed 2 | . . . . . 2 . . . . . . . . . . . Interference 7 | . . . . . 2 . 5 . . . . . . . . . Short Circuit 2 | . . . . . 1 . . . . . . 1 . . . . Siege Activations . | . . . . . . . . . . . . . . . . . Robots Corrupted 7 | . . . . . . . . . 1 2 . . . 1 3 . Combat Hostiles 7 | . . . . . . . . . 1 2 . . . 1 3 . Parts Fried 19 | . . . . . . . 2 . 3 4 . . 1 4 5 . Impact Corruptions . | . . . . . . . . . . . . . . . . . Robots Melted . | . . . . . . . . . . . . . . . . . Combat Hostiles . | . . . . . . . . . . . . . . . . . Parts Melted 3 | . . . . . . . . . . 2 . . 1 . . . Heat Transferred 2345 | . . . . . . . . . 350 1077 . 668 50 150 50 . Parts Sabotaged . | . . . . . . . . . . . . . . . . . Parts Stolen . | . . . . . . . . . . . . . . . . . Parts Stripped . | . . . . . . . . . . . . . . . . . Power Chain Reactions 11 | . . . . . . . . 1 5 3 . . 2 . . . Missiles Intercepted . | . . . . . . . . . . . . . . . . . Alert | -11 -10 -10 -9 -9 -9 -8 -8 -8 -8 -7 -7 -7 -7 -7 -7 -6 ------- Run | Scr Mat Min Mat Min Exi Min Mat Gar Mat Fac Was Fac Low Low Dat Pro Peak Influence 1311 | 20 238 210 402 236 . . 651 1232 1311 926 305 211 . . . . Average Influence 370 | 7 129 92 178 132 . . 315 941 922 639 129 52 . . . . Maximum Alert Level 4 | . 1 1 2 1 . . 2 4 4 3 1 1 . . . . Low Security (%) 43 | 100 89 88 59 79 . 100 19 . . . 68 94 . . . . Level 1 21 | . 10 11 35 20 . . 59 . . 9 31 5 . . . . Level 2 16 | . . . 5 . . . 21 29 14 51 . . . . . . Level 3 13 | . . . . . . . . 33 65 38 . . . . . . Level 4 5 | . . . . . . . . 37 20 . . . . . . . Level 5 . | . . . . . . . . . . . . . . . . . High Security . | . . . . . . . . . . . . . . . . . Max Security . | . . . . . . . . . . . . . . . . . Squads Dispatched 30 | . 4 . . . . . 7 . 8 8 . 3 . . . . Investigation 9 | . 2 . . . . . 5 . 2 . . . . . . . Extermination 4 | . . . . . . . . . . 2 . 2 . . . . Reinforcement 8 | . 2 . . . . . 1 . 3 1 . 1 . . . . Assault 4 | . . . . . . . . . 1 3 . . . . . . Garrison 5 | . . . . . . . 1 . 2 2 . . . . . . Intercept . | . . . . . . . . . . . . . . . . . Construction Impeded 1 | . . . . . . . . . . 1 . . . . . . Haulers Reinforced . | . . . . . . . . . . . . . . . . . Stealth | -11 -10 -10 -9 -9 -9 -8 -8 -8 -8 -7 -7 -7 -7 -7 -7 -6 --------- Run | Scr Mat Min Mat Min Exi Min Mat Gar Mat Fac Was Fac Low Low Dat Pro Distress Signals 9 | . 1 . 2 . . . 3 . 3 . . . . . . . Communications Jammed . | . . . . . . . . . . . . . . . . . Distress Signals . | . . . . . . . . . . . . . . . . . Times Spotted 325 | . 22 15 33 4 19 . 56 26 59 50 1 12 4 9 4 11 Peak Tracking Total 7 | . 3 3 5 1 7 . 6 6 6 6 1 3 3 4 4 3 Tactical Retreats 25 | . . 2 . . 5 . 5 3 4 5 . . . . . 1 Traps | -11 -10 -10 -9 -9 -9 -8 -8 -8 -8 -7 -7 -7 -7 -7 -7 -6 ------- Run | Scr Mat Min Mat Min Exi Min Mat Gar Mat Fac Was Fac Low Low Dat Pro Traps Triggered 12 | . 2 . . . . . 2 4 . 3 . 1 . . . . Indirectly . | . . . . . . . . . . . . . . . . . Trap Hack Attempts . | . . . . . . . . . . . . . . . . . Triggered . | . . . . . . . . . . . . . . . . . Disarmed . | . . . . . . . . . . . . . . . . . Reprogrammed . | . . . . . . . . . . . . . . . . . Reused 1 | . . . . . . . . . . . . . . . 1 . Traps Extracted . | . . . . . . . . . . . . . . . . . Installed 2 | . . . . . . . . . . . . . . . 2 . Triggered 5 | . . . . . . . 1 . 1 1 . . 2 . . . Machines | -11 -10 -10 -9 -9 -9 -8 -8 -8 -8 -7 -7 -7 -7 -7 -7 -6 ---------- Run | Scr Mat Min Mat Min Exi Min Mat Gar Mat Fac Was Fac Low Low Dat Pro Machines Disabled 23 | . . . . . 8 . 4 4 2 5 . . . . . . Max in Single Turn 2 | . . . . . 1 . 1 1 1 2 . . . . . . Garrison Access 3 | . . . . . . . . . 1 2 . . . . . . Garrison Relay 2 | . . . . . . . . 2 . . . . . . . . Machines Sabotaged . | . . . . . . . . . . . . . . . . . Garrisons Compromised . | . . . . . . . . . . . . . . . . . Overloaded Fab Kills . | . . . . . . . . . . . . . . . . . Fab Network Shutdowns . | . . . . . . . . . . . . . . . . . Hacking | -11 -10 -10 -9 -9 -9 -8 -8 -8 -8 -7 -7 -7 -7 -7 -7 -6 --------- Run | Scr Mat Min Mat Min Exi Min Mat Gar Mat Fac Was Fac Low Low Dat Pro Machines Accessed 39 | . 5 . 4 . 1 . 14 . 2 9 . 4 . . . . Terminals 20 | . 4 . 2 . . . 9 . . 3 . 2 . . . . Fabricators 5 | . . . . . . . . . . 3 . 2 . . . . Repair Stations 3 | . . . . . . . 1 . 1 1 . . . . . . Recycling Units 2 | . 1 . . . . . 1 . . . . . . . . . Scanalyzers 4 | . . . 2 . . . 2 . . . . . . . . . Garrison Access 4 | . . . . . . . 1 . 1 2 . . . . . . Total Hacks 110 | . 15 . 13 . 1 . 41 . 10 19 . 11 . . . . Successful 64 | . 7 . 7 . 1 . 24 . 7 9 . 9 . . . . Failed 45 | . 7 . 6 . . . 17 . 3 10 . 2 . . . . Catastrophic 5 | . . . 1 . . . 4 . . . . . . . . . Database Lockouts 1 | . 1 . . . . . . . . . . . . . . . Manual 47 | . 8 . 8 . 1 . 19 . 2 5 . 4 . . . . Terminals 60 | . 13 . 9 . . . 26 . . 6 . 6 . . . . Fabricators 11 | . . . . . . . . . . 6 . 5 . . . . Repair Stations 15 | . . . . . . . 5 . 7 3 . . . . . . Recycling Units 4 | . 2 . . . . . 2 . . . . . . . . . Scanalyzers 9 | . . . 4 . . . 5 . . . . . . . . . Garrison Access 10 | . . . . . . . 3 . 3 4 . . . . . . Terminal Hacks 21 | . 4 . 3 . 1 . 9 . . 2 . 2 . . . . Robot Schematic 1 | . . . 1 . . . . . . . . . . . . . Robot Analysis 6 | . 2 . 1 . . . 3 . . . . . . . . . Prototype ID Bank 2 | . 1 . . . . . 1 . . . . . . . . . Terminal Index 1 | . . . . . . . 1 . . . . . . . . . Fabricator Index 1 | . . . . . . . . . . . . 1 . . . . Unreport Threat 1 | . . . . . . . 1 . . . . . . . . . Recall Investigation 2 | . 1 . . . . . 1 . . . . . . . . . Hauler Manifests 3 | . . . 1 . . . . . . 1 . 1 . . . . Zone Layout 3 | . . . . . . . 2 . . 1 . . . . . . EX-Prototype ID Bank 1 | . . . . . 1 . . . . . . . . . . . Fabricator Hacks 6 | . . . . . . . . . . 2 . 4 . . . . Load Schematic 4 | . . . . . . . . . . 2 . 2 . . . . Build 2 | . . . . . . . . . . . . 2 . . . . Repair Station Hacks 9 | . . . . . . . 2 . 5 2 . . . . . . Scan Component 5 | . . . . . . . 1 . 3 1 . . . . . . Repair 4 | . . . . . . . 1 . 2 1 . . . . . . Recycling Unit Hacks 4 | . 2 . . . . . 2 . . . . . . . . . Report Inventory 1 | . 1 . . . . . . . . . . . . . . . Retrieve Matter 1 | . 1 . . . . . . . . . . . . . . . Retrieve Components 2 | . . . . . . . 2 . . . . . . . . . Scanalyzer 9 | . . . 4 . . . 5 . . . . . . . . . Insert Component 4 | . . . 2 . . . 2 . . . . . . . . . Analyze 5 | . . . 2 . . . 3 . . . . . . . . . Garrison Access Hacks 3 | . . . . . . . 1 . 1 1 . . . . . . Unlock Access 1 | . . . . . . . 1 . . . . . . . . . Seal Access 2 | . . . . . . . . . 1 1 . . . . . . Unauthorized Hacks 12 | . 1 . . . . . 5 . 1 2 . 3 . . . . Terminals 8 | . 1 . . . . . 4 . . 1 . 2 . . . . Track 3 | . 1 . . . . . 2 . . . . . . . . . Botnet 3 | . . . . . . . 2 . . . . 1 . . . . Operators 2 | . . . . . . . . . . 1 . 1 . . . . Fabricators 1 | . . . . . . . . . . . . 1 . . . . Prioritize 1 | . . . . . . . . . . . . 1 . . . . Repair Stations . | . . . . . . . . . . . . . . . . . Recycling Units . | . . . . . . . . . . . . . . . . . Scanalyzers . | . . . . . . . . . . . . . . . . . Garrison Access 3 | . . . . . . . 1 . 1 1 . . . . . . Restock 2 | . . . . . . . 1 . 1 . . . . . . . Reprogram 1 | . . . . . . . . . . 1 . . . . . . Data Cores Recovered 1 | . . . . . . . . . . . . 1 . . . . Used . | . . . . . . . . . . . . . . . . . Hacking Detections 28 | . 3 . 2 . . . 13 . 2 6 . 2 . . . . Full Trace Events 4 | . . . . . . . 3 . 1 . . . . . . . Feedback Events . | . . . . . . . . . . . . . . . . . Feedback Blocked . | . . . . . . . . . . . . . . . . . Robot Schematics Acquired 1 | . . . 1 . . . . . . . . . . . . . Robots Built . | . . . . . . . . . . . . . . . . . Matter . | . . . . . . . . . . . . . . . . . Time . | . . . . . . . . . . . . . . . . . Total Robot Build Rating . | . . . . . . . . . . . . . . . . . Part Schematics Acquired 4 | . . . 2 . . . 2 . . . . . . . . . Parts Built 2 | . . . . . . . . . . . . 2 . . . . Matter 512 | . . . . . . . . . . . . 512 . . . . Time 192 | . . . . . . . . . . . . 192 . . . . Total Part Build Rating 16 | . . . . . . . . . . . . 16 . . . . Parts Repaired 4 | . . . . . . . 1 . 2 1 . . . . . . Time 257 | . . . . . . . 50 . 151 56 . . . . . . Parts Recycled . | . . . . . . . . . . . . . . . . . Recycled Matter . | . . . . . . . . . . . . . . . . . Retrieved Matter 120 | . 120 . . . . . . . . . . . . . . . Retrieved Components 18 | . . . . . . . 18 . . . . . . . . . Parts Scanalyzed 4 | . . . 2 . . . 2 . . . . . . . . . Part Schematics Acquired 4 | . . . 2 . . . 2 . . . . . . . . . Parts Damaged 2 | . . . . . . . 2 . . . . . . . . . Bothacking | -11 -10 -10 -9 -9 -9 -8 -8 -8 -8 -7 -7 -7 -7 -7 -7 -6 ------------ Run | Scr Mat Min Mat Min Exi Min Mat Gar Mat Fac Was Fac Low Low Dat Pro Used RIF Installer 1 | . . . . . . . . 1 . . . . . . . . Robots Hacked 11 | . . . . . . . . . . 8 . 2 1 . . . Non-combat 5 | . . . . . . . . . . 3 . 2 . . . . Combat 6 | . . . . . . . . . . 5 . . 1 . . . Robot Hacks Applied 13 | . . . . . . . . . . 10 . 2 1 . . . parse_system 2 | . . . . . . . . . . 2 . . . . . . ignore_parts 1 | . . . . . . . . . . 1 . . . . . . map_route 1 | . . . . . . . . . . 1 . . . . . . redirect_shields 1 | . . . . . . . . . . 1 . . . . . . reboot_system 2 | . . . . . . . . . . 2 . . . . . . overwrite_iff 2 | . . . . . . . . . . 2 . . . . . . formatsys_low 2 | . . . . . . . . . . . . 2 . . . . formatsys_high 2 | . . . . . . . . . . 1 . . 1 . . . Relay Couplers Released 19 | . . . . . . . 3 9 3 4 . . . . . . Machine Destruction 9 | . . . . . . . . 9 . . . . . . . . Programmers 10 | . . . . . . . 3 . 3 4 . . . . . . Attached 5 | . . . . . . . . . . 3 . 1 1 . . . Robots Rewired 1 | . . . . . . . . . . 1 . . . . . . Allies Hacked 1 | . . . . . . . . . . . . 1 . . . . Hacks Repelled . | . . . . . . . . . . . . . . . . . Allies | -11 -10 -10 -9 -9 -9 -8 -8 -8 -8 -7 -7 -7 -7 -7 -7 -6 -------- Run | Scr Mat Min Mat Min Exi Min Mat Gar Mat Fac Was Fac Low Low Dat Pro Total Allies 27 | . . . . . . . . . . 4 20 2 1 . . . Largest Group 20 | . . . . . . . . . . 2 20 18 2 1 . . Highest-Rated Group 576 | . . . . . . . . . . 47 576 510 31 21 . . Highest-Rated Ally 35 | . . . . . . . . . . 30 35 33 21 21 . . Total Orders 4 | . . . . . . . . . . . . 4 . . . . GOTO 2 | . . . . . . . . . . . . 2 . . . . FOLLOW 1 | . . . . . . . . . . . . 1 . . . . AID 1 | . . . . . . . . . . . . 1 . . . . Ally Attacks 137 | . . . . . . . . . 12 21 17 73 2 12 . . Total Damage 3168 | . . . . . . . . . 660 650 314 1138 64 342 . . Kills 20 | . . . . . . . . . 5 3 1 7 . 4 . . Allies Corrupted . | . . . . . . . . . . . . . . . . . Allies Melted . | . . . . . . . . . . . . . . . . . Turrets Deployed 1 | . . . . . . . . . 1 . . . . . . . Intel | -11 -10 -10 -9 -9 -9 -8 -8 -8 -8 -7 -7 -7 -7 -7 -7 -6 ------- Run | Scr Mat Min Mat Min Exi Min Mat Gar Mat Fac Was Fac Low Low Dat Pro Robot Analysis Total 121 | . 2 . 1 . . . 3 . . . . . . . 115 . Derelict Logs Recovered 3 | . . 2 . 1 . . . . . . . . . . . . Drone Launches . | . . . . . . . . . . . . . . . . . Drone Recoveries . | . . . . . . . . . . . . . . . . . Exploration | -11 -10 -10 -9 -9 -9 -8 -8 -8 -8 -7 -7 -7 -7 -7 -7 -6 ------------- Run | Scr Mat Min Mat Min Exi Min Mat Gar Mat Fac Was Fac Low Low Dat Pro Turns Passed 19968 | 121 1305 653 1152 589 2580 509 3103 1570 1074 2042 1266 1467 491 692 268 1086 Spaces Moved 9435 | 53 603 319 473 297 1299 281 1316 887 360 1052 277 753 277 331 144 713 Core 7 | 7 . . . . . . . . . . . . . . . . Treads 4576 | 46 603 319 473 297 1249 281 1158 150 . . . . . . . . Legs 3314 | . . . . . 50 . . 86 . 683 277 753 277 331 144 713 Wheels 1538 | . . . . . . . 158 651 360 369 . . . . . . Hover . | . . . . . . . . . . . . . . . . . Flight . | . . . . . . . . . . . . . . . . . Fastest Speed 45 | 50 160 160 160 160 45 180 160 130 140 98 136 136 125 136 106 144 Average Speed 159 | 148 160 160 160 160 164 180 178 147 165 145 136 162 167 157 139 144 Slowest Speed 330 | 160 160 160 160 160 180 180 200 330 190 190 136 170 170 170 150 150 Overloaded Moves 107 | . . . . . 24 . . . . 37 . . 18 . 28 . Propulsion Burnouts . | . . . . . . . . . . . . . . . . . Robots Hopped 1 | . . . . . . . . . 1 . . . . . . . Cave-ins Triggered . | . . . . . . . . . . . . . . . . . Exploration Rate (%) 58 | 4 85 57 49 63 90 75 95 72 38 20 95 18 45 49 74 69 Regions Visited 16 Branch Regions 8 Pre-discovered Areas 29 | . . . . . . . . . . . . . . . 29 . Known Exits Taken 7 | . . . . 1 . . 1 . 1 . . 1 1 1 1 . Unknown Exits Taken 6 | 1 1 1 1 . 1 1 . . . . . . . . . . Scrap Searched 9 | . . 1 . 2 . . . . . . . . 2 1 . 3 Spaces Dug 27 | . 1 . . 4 . . 6 . . . . 14 . 2 . . Terrain Destroyed 154 | . 1 . . 7 18 . 37 6 32 3 . 17 1 3 8 21 Melee 13 | . . . . . . . 2 . . . . 9 . 2 . . Projectile 96 | . 1 . . 7 2 . 35 2 10 1 . 8 . 1 8 21 AOE 45 | . . . . . 16 . . 4 22 2 . . 1 . . . Actions | -11 -10 -10 -9 -9 -9 -8 -8 -8 -8 -7 -7 -7 -7 -7 -7 -6 --------- Run | Scr Mat Min Mat Min Exi Min Mat Gar Mat Fac Was Fac Low Low Dat Pro Total 12663 | 73 761 393 685 341 1541 283 1735 1037 640 1360 1160 917 294 470 202 771 Wait 1478 | 2 23 17 2 17 . . 135 9 119 77 849 64 . 108 10 46 Move 9417 | 52 602 318 472 296 1298 280 1315 885 357 1052 276 752 276 330 143 713 Hop 1 | . . . . . . . . . 1 . . . . . . . Pick Up 180 | 3 23 2 29 . 44 1 15 13 5 20 4 8 2 . 10 1 Fast Attach 95 | 6 2 . 1 . 18 . 14 12 8 11 4 5 . 4 7 3 Attach 68 | . 3 3 9 . 12 . 4 6 4 19 . 2 . . 5 1 Detach 11 | . . . . . 2 . . . 1 5 2 . . . 1 . Swap 160 | . 4 4 15 2 10 . 38 12 12 19 8 13 6 10 3 4 Drop 217 | . 9 5 32 . 46 1 37 18 10 18 10 14 2 1 11 3 Fire 946 | 10 95 43 125 26 111 1 173 64 120 103 6 44 4 12 9 . Melee 62 | . . . . . . . 2 . 3 36 1 10 4 5 1 . Ram . | . . . . . . . . . . . . . . . . . Kick . | . . . . . . . . . . . . . . . . . Crush 3 | . . 1 . . . . 2 . . . . . . . . . Escape Stasis 23 | . . . . . . . . 18 . . . 5 . . . . Rewire . | . . . . . . . . . . . . . . . . . Trap 2 | . . . . . . . . . . . . . . . 2 . Miscellaneous . | . . . . . . . . . . . . . . . . . Route ------- -11/Scrapyard -10/Materials (discovered 4 exits: *Mat x3 / [*Min]) -10/Mines -9/Materials (discovered 2 exits: *Mat / [*Min]) -9/Mines (discovered 2 exits: *Mat / *Exi) -9/Exiles -8/Mines -8/Materials (discovered 4 exits: *Fac x3 / Gar) -8/Garrison (discovered 3 exits: *Mat x3) -8/Materials -7/Factory (discovered 2 exits: *Fac / *Sto) -7/Waste -7/Factory (discovered 2 exits: *Fac / *Low) -7/Lower Caves -7/Lower Caves -7/Data Miner -6/Proximity Caves History --------- Turn | Location | Event 6 | -11/Scrapyard | Discovered new exit (range 16) 122 | -11/Scrapyard | Entered Materials 313 | -10/Materials | Build established: Mutant 428 | -10/Materials | Discovered new exit (range 9) 568 | -10/Materials | Discovered new exit (range 12) 820 | -10/Materials | Lost 3 parts (1p2w) 878 | -10/Materials | Discovered new exit (range 16) 1087 | -10/Materials | Core integrity fell below 50% 1100 | -10/Materials | Discovered new exit (range 5) 1273 | -10/Materials | Central database locked down 1427 | -10/Materials | Entered Mines 1447 | -10/Mines | Learned Materials emergency access door positions 1944 | -10/Mines | Learned Materials terminal intel 2023 | -10/Mines | Discovered new exit (range 6) 2030 | -10/Mines | Build established: Scavenger-Mutant 2045 | -10/Mines | Core integrity fell below 20% 2080 | -10/Mines | Entered Materials 2080 | -9/Materials | Evolved 2 slots: Propulsion x1, Utility x1 2082 | -9/Materials | Loaded intel: 12 terminal locations 2461 | -9/Materials | Lost 3 parts (1p1n1w) 2509 | -9/Materials | Discovered new exit (range 15) 2833 | -9/Materials | Discovered new exit (range 10) 3232 | -9/Materials | Entered Mines 3279 | -9/Mines | Discovered new exit (range 16) 3316 | -9/Mines | Build established: Hauler-Mutant 3386 | -9/Mines | Excavation squad dispatched 3386 | -9/Mines | A large section of the Mines collapsed 3589 | -9/Mines | Core integrity fell below 50% 3768 | -9/Mines | Identified exit to Exiles 3815 | -9/Mines | Deemed a non-threat by the Exiles lab entrance 3821 | -9/Mines | Entered Exiles 3944 | -9/Exiles | Met 8R-AWN 3966 | -9/Exiles | Met EX-HEX 4027 | -9/Exiles | Met EX-DEC 4235 | -9/Exiles | Met EX-BIN 4260 | -9/Exiles | Aligned with FarCom system 4262 | -9/Exiles | Given EX-Vault access code 4305 | -9/Exiles | Opened EX-Vault 4316 | -9/Exiles | Found Potential Leg 4319 | -9/Exiles | Found Potential Leg 4324 | -9/Exiles | Found AWS/Gauss 4366 | -9/Exiles | Warned to stay clear of 0b10 Research branches 4811 | -9/Exiles | Attacked by the Exiles 4893 | -9/Exiles | Lost 4 parts (1p1n2u) 4953 | -9/Exiles | Core integrity fell below 20% 4977 | -9/Exiles | Destroyed 8R-AWN 4994 | -9/Exiles | Found Prototype Ballistic Gun 4994 | -9/Exiles | Identified 8R-AWN's Boregun 4996 | -9/Exiles | Lost 5 parts (2n2u1w) 5103 | -9/Exiles | Build established: Mutant 5124 | -9/Exiles | Found Prototype Processor 5360 | -9/Exiles | Destroyed EX-BIN 5390 | -9/Exiles | Destroyed EX-HEX 5473 | -9/Exiles | Destroyed EX-DEC 5523 | -9/Exiles | Found Prototype Device 5523 | -9/Exiles | Identified System Purifier 6218 | -9/Exiles | Found Deploy-a-Sentry 6383 | -9/Exiles | Discovered new exit (range 12) 6401 | -9/Exiles | Stole three prototypes: Potential Leg, AWS/Gauss, Deploy-a-Sentry 6401 | -9/Exiles | Entered Mines 6511 | -8/Mines | Build established: Hauler-Mutant 6793 | -8/Mines | Discovered new exit (range 9) 6910 | -8/Mines | Entered Materials 6910 | -8/Materials | Evolved 2 slots: Utility x2 7096 | -8/Materials | Garrison activated, responded to threat 7422 | -8/Materials | Discovered new exit (range 10) 7468 | -8/Materials | Identified exit to Factory 7538 | -8/Materials | Build established: Scavenger-Mutant 8068 | -8/Materials | Discovered exit to Factory (range 16) 8741 | -8/Materials | Build established: Hauler-Mutant 9084 | -8/Materials | Discovered exit to Factory (range 4) 9415 | -8/Materials | Repaired Broken Cold Fusion Reactor? 9759 | -8/Materials | Build established: Scavenger-Mutant 9865 | -8/Materials | Identified exit to Garrison 9923 | -8/Materials | Core integrity fell below 50% 10013 | -8/Materials | Entered Garrison 10044 | -8/Garrison | Triggered checkpoint 10122 | -8/Garrison | Lost 5 parts (1n2u2w) 10257 | -8/Garrison | Garrison Relay disabled 10428 | -8/Garrison | Triggered checkpoint 10472 | -8/Garrison | Garrison Relay disabled 10540 | -8/Garrison | Triggered checkpoint 10549 | -8/Garrison | Build established: Hauler-Mutant 10694 | -8/Garrison | Discovered new exit (range 8) 10760 | -8/Garrison | Triggered checkpoint 10835 | -8/Garrison | Discovered new exit (range 15) 10880 | -8/Garrison | Build established: Scavenger-Mutant 10916 | -8/Garrison | Triggered checkpoint 10988 | -8/Garrison | Discovered new exit (range 11) 11010 | -8/Garrison | Installed Relay Interface Framework 11210 | -8/Garrison | Spotted B-75 Beast 11210 | -8/Garrison | Spotted B-75 Beast 11545 | -8/Garrison | Build established: Hauler-Mutant 11583 | -8/Garrison | Entered Materials 11658 | -8/Materials | Repaired Rnf. Fission Core 11754 | -8/Materials | Repaired Broken Cmb. Antigrav System? 11944 | -8/Materials | Garrison activated, responded to threat 11979 | -8/Materials | Core integrity fell below 20% 12383 | -8/Materials | First assault squad dispatched 12426 | -8/Materials | DAS Turret deployed 12629 | -8/Materials | Discovered exit to Factory (range 15) 12657 | -8/Materials | Entered Factory 12657 | -7/Factory | Evolved 2 slots: Utility x2 12659 | -7/Factory | Identified Exp. Targeting Computer 12862 | -7/Factory | Build established: Bothacker-Mutant 13087 | -7/Factory | Repaired Rnf. Fission Core 13619 | -7/Factory | Discovered new exit (range 16) 13624 | -7/Factory | Garrison activated, responded to threat 13857 | -7/Factory | First assault squad dispatched 13869 | -7/Factory | Identified exit to Factory 14045 | -7/Factory | System corruption reached 10% 14105 | -7/Factory | Lost 4 parts (1n2u1w) 14365 | -7/Factory | Discovered new exit (range 11) 14386 | -7/Factory | Identified exit to Storage 14699 | -7/Factory | Sucked down chute 14699 | -7/Factory | Entered Waste 14700 | -7/Waste | Joined by Warlord forces that had cleared the area 14805 | -7/Waste | Found Damper Plating 14900 | -7/Waste | A Compactor rumbled back to life 14906 | -7/Waste | Spotted C-40 Crusher 14907 | -7/Waste | Allies destroyed C-40 Crusher 14936 | -7/Waste | Discovered new exit (range 13) 15957 | -7/Waste | Identified exit to Factory 15965 | -7/Waste | Entered Factory 15965 | -7/Factory | Accompanied by 18 allies 16251 | -7/Factory | Discovered exit to Factory (range 15) 16684 | -7/Factory | Core integrity fell below 50% 16687 | -7/Factory | P-60 Hacker assimilated allied 15-EAM(l) 16816 | -7/Factory | Discovered new exit (range 14) 16917 | -7/Factory | Identified exit to Lower Caves 17106 | -7/Factory | Fabricated Cmb. Antigrav System? 17432 | -7/Factory | Entered Lower Caves 17432 | -7/Lower Caves | Accompanied by 1 ally 17441 | -7/Lower Caves | Build established: Hauler-Mutant 17852 | -7/Lower Caves | Encountered a Warlord checkpoint 17880 | -7/Lower Caves | Discovered new exit (range 13) 17921 | -7/Lower Caves | Identified exit to Lower Caves 17923 | -7/Lower Caves | Entered another Lower Caves area 17923 | -7/Lower Caves | Accompanied by 1 ally 18316 | -7/Lower Caves | Found Alien Artifact 18316 | -7/Lower Caves | Identified Core Expander 18316 | -7/Lower Caves | Installed Core Expander, added new Propulsion slot 18603 | -7/Lower Caves | Discovered new exit (range 9) 18612 | -7/Lower Caves | Identified exit to Data Miner 18615 | -7/Lower Caves | Entered Data Miner 18615 | -7/Data Miner | Discovered new exit (range 6) 18657 | -7/Data Miner | Met Data Miner 18692 | -7/Data Miner | Interfaced with the Data Conduit 18726 | -7/Data Miner | Core integrity fell below 20% 18751 | -7/Data Miner | Lost 6 parts (1p2n3w) 18882 | -7/Data Miner | Identified exit to Proximity Caves 18883 | -7/Data Miner | Entered Proximity Caves 19969 | -6/Proximity Caves | Destroyed by H-66 Slayer with Gauss Rifle Last Messages --------------- 19401_ Gauss Rifle fries itself beyond repair. 19401_ Hvy. Assault Rifle fries itself beyond repair. 19402_ Phase Shifter fries itself beyond repair. 19404_ Hvy. Assault Rifle fries itself beyond repair. 19404_ Gauss Rifle fries itself beyond repair. 19406_ Lgt. Fission Core fries itself beyond repair. 19408_ Flexi-carbon Leg fries itself beyond repair. 19409_ The unstable cave ceiling collapses. 19554_ Acquired 1 matter. 19558_ Acquired 3 matter. 19581_ Acquired 2 matter. 19596_ Acquired 1 matter. 19600_ Acquired 2 matter. 19610_ Acquired 4 matter. 19966_ Slug penetrates Wall. 19967_ C-30 ARC bursts open, deploying its payload. 19967_ H-66 Slayer unfolds itself. 19967_ Slug penetrates Wall. 19968_ Slug penetrates H-66 Slayer. 19969_ Penetrated by Slug. Map ----- +----------------------------------------------------+ | ?????????????????????????????????????????????????? | | ?????????????????????###??##?????????????????????? | | ????????????????????## ## ??????????????????????? | | ????????????????????# ##?????????????????????? | | ????????????????????# # #?????????????????????? | | ?????????????????????# #?????????????????????? | | ??????????????????##?# ##?????????????????????? | | ?????????????????## ## ##?????????????????????? | | ?????????????????# # # #?????????????????????? | | ?????????????????# # ## #?????????????????????? | | ??????????????????# ##?????????????????????? | | ??????????????????# ## #??????????????????????? | | ????????#?????????# ### #??????????????????????? | | ???? ## ????##### #?## #??????????????????????? | | ???? ???# #??# #??????????????????????? | | ##??# ??# #??# #??????????????????????? | | #### ?# #####??# #??????????????????????? | | # #####??# #??????????????????????? | | ? # ##?# #??????????????????????? | | ? ## #?# #??????????????????????? | | ???????????## #?# #??????????????????????? | | ???????????## #?# #??????????????????????? | | ???????????# #?# #??????????????????????? | | ???????????# ### #?# #??????????????????????? | | ???????????######?# ##?# #??????????????????????? | | ??????????????????# ##??#@#??????????????????????? | | ??????????? ###??####### ##?????????????????????? | | ?????????? ???## ##????????????????????? | | ?????????? ### #????????????????????? | | ????????? #????????????????????? | | ?????????? ##????????????????????? | | ?????????? #### ## #?????????????????????? | | ?????????????????#??## #?????????????????????? | | ?????????????????#???## ###?????????????????????? | | ?????????????????? ???# #???????????????????????? | | ??????????????????? ??# "???????????????????????? | | ???????????????????# ?#hh"####??##?#?????????????? | | ???????????????##### ## %## ### # #?#???????????? | | ???????????????# # # ##??????????? | | ???????????????# # # ##?????????? | | ???????????????# # # ??????????? | | #????? ???????## # # ## #???????????? | | #??? ???????## ### # ##?? ##???????????? | | ## ????????###??## # ##?? ##????????????? | | #??????????????# # ##?# #??????????????? | | #??????????????# ## #????????????? | | #??????????????## #????????????? | | #????????????????## # #???????????? | | ???? #?##????????????## # ####???????????? | | ????? ???????????## ##???????????????# | +----------------------------------------------------+ Best States ------------- Heat Dissipation 71 Energy Generation 21 Energy Capacity 610 Matter Stores 387 Matter Capacity 700 Sight Range 16 Robot Scan Range 16 Terrain Scan Density 10 Additional Mass Support 12 Armor Coverage 450 Resistance: TH 10 Utility Shielding 66 Evasion (%) 51 Targeting Accuracy 12 Melee Accuracy 6 Core Analysis 10 Recoil Reduction 3 Offensive Hacking 21 Item Schematics ----------------- Hacking Suite | -9/Materials | Scanalyzed Arm. Wheel | -9/Materials | Scanalyzed Cmb. Antigrav System | -8/Materials | Scanalyzed Cold Fusion Reactor | -8/Materials | Scanalyzed Robot Schematics ------------------ O-16 Technician | -9/Materials | Hacked Fabricated ------------ Cmb. Antigrav System | x2 | -7/Factory Alien Tech Used ----------------- Core Expander Achievements -------------- None Challenges ------------ None Game ------ Seed ExplosiveLightCore Manual? 0 Play Time 02:11:13 Cumulative 459.7 hours Start 2020.09.06 @ 23:33:06 End 2020.09.07 @ 17:07:30 Sessions 2 Manual Loads 0 Difficulty Rogue Special Mode None Game No. 308 Rogue 308 Adventurer 0 Explorer 0 Win Type - Total 4 Types 4/0/0/0/0/0/0 Lore% 86 Gallery% 87 Achievement% 66 Wizard Run 0 Options --------- ASCII 0 Keyboard 0 Movement Mouse Keybinds 1 Fullscreen 2 Font 24/Smallcaps Map View 76x50 Tactical HUD 1 Map Filters NONE Filters NONE Steam 1 RUN: 16c634f3-2471-44cb-a643-cb0b9f5b1627